fUST/lending_fUST_20260118
["ID","MTS","AMOUNT","RATE_DAILY","PERIOD"]
[402399913,1768672251141,-858.37,0.00016712,3]
[402399915,1768672251150,-500.0,0.00016712,3]
[402399917,1768672251159,-500.0,0.00016712,3]
[402399919,1768672251168,-500.0,0.00016712,3]
[402399921,1768672251177,-500.0,0.00016712,3]
[402399923,1768672251187,-900.31,0.00016712,3]
[402399924,1768672251197,-1642.54,0.00016712,3]
[402399926,1768672251207,-764.57,0.00016712,3]
[402399928,1768672251216,-500.0,0.00016712,3]
[402399930,1768672251225,-548.54,0.00016712,3]
[402399933,1768672251235,-660.54,0.00016712,3]
[402399934,1768672251244,-352.98387266,0.00016712,3]
[402399937,1768672251253,-500.0,0.00016712,3]
[402399938,1768672251263,-1141.74,0.00016712,3]
[402399941,1768672251273,-1017.41,0.00016712,3]
[402399943,1768672251287,-500.0,0.00016712,3]
[402399945,1768672251296,-500.0,0.00016712,3]
[402399947,1768672251305,-1019.73,0.00016712,3]
[402399949,1768672251314,-500.0,0.00016712,3]
[402399951,1768672251325,-500.0,0.00016712,3]
[402399952,1768672251334,-500.0,0.00016712,3]
[402399954,1768672251344,-1637.47,0.00016712,3]
[402399957,1768672251356,-915.65,0.00016712,3]
[402399958,1768672251365,-1280.75,0.00016712,3]
[402399960,1768672251375,-500.0,0.00016712,3]
[402399962,1768672251383,-500.0,0.00016712,3]
[402399964,1768672251392,-702.07,0.00016712,3]
[402399966,1768672251402,-500.0,0.00016712,3]
[402399968,1768672251411,-500.0,0.00016712,3]
[402399970,1768672251420,-500.0,0.00016712,3]
[402399972,1768672251429,-605.46,0.00016712,3]
[402399974,1768672251438,-1184.2,0.00016712,3]
[402399976,1768672251448,-500.0,0.00016712,3]
[402399979,1768672251457,-500.0,0.00016712,3]
[402399981,1768672251466,-500.0,0.00016712,3]
[402399982,1768672251475,-933.56,0.00016712,3]
[402399984,1768672251484,-1078.02,0.00016712,3]
[402399986,1768672251493,-500.0,0.00016712,3]
[402399989,1768672251502,-500.0,0.00016712,3]
[402399990,1768672251512,-500.0,0.00016712,3]
[402399992,1768672251521,-2148.56,0.00016712,3]
[402399994,1768672251531,-583.23,0.00016712,3]
[402399996,1768672251540,-500.0,0.00016712,3]
[402399998,1768672251549,-500.0,0.00016712,3]
[402400001,1768672251559,-500.0,0.00016712,3]
[402400002,1768672251568,-729.58,0.00016712,3]
[402400005,1768672251577,-500.0,0.00016712,2]
[402400007,1768672251586,-500.0,0.00016712,3]
[402400009,1768672251595,-500.0,0.00016712,2]
[402400011,1768672251605,-1609.54,0.00016712,3]
[402400013,1768672251614,-2656.16,0.00016712,3]
[402400015,1768672251623,-500.0,0.00016712,3]
[402400017,1768672251633,-1160.4,0.00016712,3]
[402400018,1768672251642,-1132.67,0.00016712,3]
[402400021,1768672251651,-500.0,0.00016712,3]
[402400023,1768672251660,-500.0,0.00016712,3]
[402400024,1768672251670,-795.11,0.00016712,3]
[402400027,1768672251680,-500.0,0.00016712,2]
[402400029,1768672251689,-500.0,0.00016712,3]
[402400031,1768672251698,-500.0,0.00016712,3]
[402400032,1768672251707,-1232.18,0.00016712,3]
[402400034,1768672251716,-500.0,0.00016712,3]
[402400036,1768672251726,-815.62,0.00016712,3]
[402400039,1768672251735,-500.0,0.00016712,3]
[402400040,1768672251744,-500.0,0.00016712,3]
[402400043,1768672251753,-500.0,0.00016712,3]
[402400045,1768672251763,-500.0,0.00016712,3]
[402400047,1768672251772,-1090.41,0.00016712,3]
[402400049,1768672251781,-500.0,0.00016712,3]
[402400051,1768672251790,-654.93,0.00016712,3]
[402400053,1768672251798,-500.0,0.00016712,3]
[402400055,1768672251808,-763.75,0.00016712,3]
[402400057,1768672251817,-1185.44,0.00016712,3]
[402400059,1768672251826,-500.0,0.00016712,3]
[402400061,1768672251835,-500.0,0.00016712,2]
[402400063,1768672251844,-173.5,0.00016737,2]
[402400065,1768672251855,-1008.1174574,0.00016864,2]
[402400067,1768672251864,-2147.0,0.00016874,2]
[402400069,1768672251873,-661.646,0.00016874,2]
[402400071,1768672251882,-1367.0,0.00016874,2]
[402400073,1768672251891,-202.667,0.00016874,2]
[402400075,1768672251900,-200.983,0.00016874,2]
[402400077,1768672251909,-222.015,0.00016874,2]
[402400079,1768672251918,-1216.7807319,0.00016877,2]
[402400081,1768672251927,-20248.580414,0.00016882,2]
[402400083,1768672251936,-180.95,0.00016985,2]
[402400085,1768672251945,-500.0,0.00016986,3]
[402400087,1768672251954,-188.42277333,0.00016986,3]
[402400089,1768672251964,-500.0,0.00016986,3]
[402400091,1768672251973,-500.0,0.00016986,3]
[402400093,1768672251983,-500.0,0.00016986,3]
[402400095,1768672251992,-500.0,0.00016986,3]
[402400097,1768672252001,-1033.84,0.00016986,3]
[402400099,1768672252011,-1070.01,0.00016986,3]
[402400101,1768672252020,-500.0,0.00016986,3]
[402400103,1768672252029,-500.0,0.00016986,3]
[402400105,1768672252038,-500.0,0.00016986,3]
[402400107,1768672252050,-500.0,0.00016986,3]
[402400109,1768672252060,-500.0,0.00016986,3]
[402400111,1768672252069,-796.7,0.00016986,3]
[402400113,1768672252079,-500.0,0.00016986,3]
[402400115,1768672252088,-500.0,0.00016986,3]
[402400117,1768672252097,-500.0,0.00016986,3]
[402400119,1768672252106,-618.49,0.00016986,3]
[402400121,1768672252115,-500.0,0.00016986,3]
[402400123,1768672252124,-500.0,0.00016986,3]
[402400125,1768672252133,-1270.86,0.00016986,3]
[402400127,1768672252142,-500.0,0.00016986,3]
[402400129,1768672252151,-500.0,0.00016986,3]
[402400131,1768672252160,-500.0,0.00016986,3]
[402400133,1768672252169,-500.0,0.00016986,3]
[402400135,1768672252178,-500.0,0.00016986,3]
[402400137,1768672252190,-500.0,0.00016986,3]
[402400139,1768672252199,-813.64,0.00016986,3]
[402400141,1768672252208,-500.0,0.00016986,3]
[402400143,1768672252218,-500.0,0.00016986,3]
[402400145,1768672252227,-500.0,0.00016986,3]
[402400147,1768672252237,-500.0,0.00016986,3]
[402400149,1768672252246,-561.64,0.00016986,3]
[402400151,1768672252255,-815.39,0.00016986,3]
[402400153,1768672252264,-500.0,0.00016986,3]
[402400155,1768672252273,-1185.99,0.00016986,3]
[402400157,1768672252287,-500.0,0.00016986,3]
[402400159,1768672252297,-567.48,0.00016986,3]
[402400161,1768672252306,-500.0,0.00016986,3]
[402400163,1768672252316,-500.0,0.00016986,3]
[402400165,1768672252326,-500.0,0.00016986,3]
[402400166,1768672252335,-500.0,0.00016986,3]
[402400168,1768672252344,-500.0,0.00016986,3]
[402400171,1768672252356,-649.06,0.00016986,3]
[402400173,1768672252365,-500.0,0.00016986,3]
[402400175,1768672252375,-500.0,0.00016986,3]
[402400177,1768672252384,-565.36,0.00016986,3]
[402400179,1768672252393,-500.0,0.00016986,3]
[402400181,1768672252403,-500.0,0.00016986,3]
[402400183,1768672252412,-844.87,0.00016986,3]
[402400185,1768672252422,-195.78734149,0.00016986,3]
[402400187,1768672252431,-1175.77,0.00016986,3]
[402400189,1768672252440,-500.0,0.00016986,3]
[402400191,1768672252449,-500.0,0.00016986,3]
[402400193,1768672252458,-227.29636774,0.00016986,3]
[402400194,1768672252468,-500.0,0.00016986,3]
[402400196,1768672252477,-500.0,0.00016986,3]
[402400199,1768672252487,-1169.86,0.00016986,3]
[402400200,1768672252495,-500.0,0.00016986,3]
[402400202,1768672252505,-602.7,0.00016986,3]
[402400204,1768672252514,-500.0,0.00016986,3]
[402400206,1768672252523,-500.0,0.00016986,3]
[402400208,1768672252532,-500.0,0.00016986,3]
[402400210,1768672252541,-500.0,0.00016986,3]
[402400212,1768672252551,-500.0,0.00016986,3]
[402400214,1768672252561,-500.0,0.00016986,3]
[402400217,1768672252570,-500.0,0.00016986,3]
[402400218,1768672252579,-500.0,0.00016986,3]
[402400221,1768672252589,-605.61,0.00016986,3]
[402400223,1768672252598,-500.0,0.00016986,3]
[402400225,1768672252607,-514.68,0.00016986,3]
[402400226,1768672252616,-500.0,0.00016986,3]
[402400228,1768672252625,-500.0,0.00016986,3]
[402400230,1768672252634,-637.45,0.00016986,3]
[402400232,1768672252643,-595.27,0.00016986,3]
[402400233,1768672252651,-622.37,0.00016986,3]
[402400234,1768672252660,-510.29,0.00016986,3]
[402400235,1768672252669,-500.0,0.00016986,3]
[402400236,1768672252678,-500.0,0.00016986,3]
[402400237,1768672252687,-747.18,0.00016986,3]
[402400238,1768672252695,-500.0,0.00016986,3]
[402400239,1768672252703,-521.63724608,0.00016986,3]
[402400240,1768672252712,-500.0,0.00016986,3]
[402400241,1768672252721,-500.0,0.00016986,3]
[402400242,1768672252729,-947.56,0.00016986,3]
[402400243,1768672252738,-756.15,0.00016986,3]
[402400244,1768672252746,-500.0,0.00016986,3]
[402400245,1768672252755,-534.17,0.00016986,3]
[402400246,1768672252764,-751.4,0.00016986,3]
[402400247,1768672252772,-500.0,0.00016986,3]
[402400248,1768672252781,-832.93,0.00016986,3]
[402400249,1768672252789,-500.0,0.00016986,3]
[402400250,1768672252798,-500.0,0.00016986,3]
[402400251,1768672252806,-537.8,0.00016986,3]
[402400252,1768672252815,-500.0,0.00016986,3]
[402400253,1768672252823,-213.48291508,0.00016986,3]
[402400254,1768672252831,-774.1,0.00016986,3]
[402400255,1768672252838,-500.0,0.00016986,3]
[402400256,1768672252846,-1081.35,0.00016986,3]
[402400258,1768672252853,-500.0,0.00016986,3]
[402400259,1768672252860,-500.0,0.00016986,3]
[402400261,1768672252869,-500.0,0.00016986,3]
[402400263,1768672252878,-500.0,0.00016986,3]
[402400265,1768672252887,-864.76,0.00016986,3]
[402400267,1768672252896,-500.0,0.00016986,3]
[402400269,1768672252905,-1077.83,0.00016986,3]
[402400271,1768672252914,-500.0,0.00016986,3]
[402400273,1768672252923,-500.0,0.00016986,3]
[402400275,1768672252931,-988.32,0.00016986,3]
[402400277,1768672252940,-905.85,0.00016986,3]
[402400279,1768672252950,-1000.0,0.00016986,2]
[402400281,1768672252959,-500.0,0.00016986,3]
[402400283,1768672252967,-500.0,0.00016986,3]
[402400285,1768672252976,-500.0,0.00016986,3]
[402400287,1768672252985,-1338.2,0.00016986,3]
[402400289,1768672252995,-557.94,0.00016986,3]
[402400291,1768672253004,-500.0,0.00016986,3]
[402400293,1768672253013,-500.0,0.00016986,3]
[402400295,1768672253023,-500.0,0.00016986,3]
[402400297,1768672253032,-500.0,0.00016986,3]
[402400299,1768672253042,-500.0,0.00016986,3]
[402400301,1768672253052,-500.0,0.00016986,3]
[402400303,1768672253061,-500.0,0.00016986,3]
[402400305,1768672253071,-500.0,0.00016986,3]
[402400307,1768672253080,-954.03,0.00016986,3]
[402400309,1768672253090,-500.0,0.00016986,3]
[402400311,1768672253099,-500.0,0.00016986,3]
[402400312,1768672253108,-500.0,0.00016986,3]
[402400314,1768672253117,-500.0,0.00016986,3]
[402400316,1768672253127,-569.16,0.00016986,3]
[402400318,1768672253137,-500.0,0.00016986,3]
[402400320,1768672253146,-500.0,0.00016986,3]
[402400322,1768672253156,-500.0,0.00016986,3]
[402400324,1768672253165,-500.0,0.00016986,3]
[402400326,1768672253174,-500.0,0.00016986,3]
[402400328,1768672253184,-500.0,0.00016986,3]
[402400330,1768672253193,-642.64,0.00016986,3]
[402400332,1768672253203,-652.9,0.00016986,3]
[402400334,1768672253213,-500.0,0.00016986,3]
[402400336,1768672253224,-501.93342136,0.00016986,3]
[402400339,1768672253233,-500.0,0.00016986,3]
[402400341,1768672253244,-653.37,0.00016986,3]
[402400342,1768672253255,-1166.14,0.00016986,3]
[402400344,1768672253265,-500.0,0.00016986,3]
[402400346,1768672253274,-500.0,0.00016986,3]
[402400348,1768672253288,-500.0,0.00016986,3]
[402400350,1768672253297,-500.0,0.00016986,3]
[402400352,1768672253307,-500.0,0.00016986,3]
[402400354,1768672253316,-500.0,0.00016986,3]
[402400356,1768672253326,-500.0,0.00016986,3]
[402400358,1768672253336,-587.61,0.00016986,3]
[402400360,1768672253345,-600.53,0.00016986,3]
[402400362,1768672253356,-885.65,0.00016986,3]
[402400364,1768672253366,-151.0,0.00016986,2]
[402400366,1768672253376,-746.94,0.00016986,3]
[402400368,1768672253386,-151.0,0.00016986,2]
[402400370,1768672253396,-151.0,0.00016986,2]
[402400372,1768672253405,-151.0,0.00016986,2]
[402400374,1768672253415,-1428.8,0.00016986,3]
[402400376,1768672253425,-500.0,0.00016986,3]
[402400378,1768672253437,-375.1586931,0.00016986,3]
[402400380,1768672253447,-602.7,0.00016986,3]
[402400382,1768672253458,-500.0,0.00016986,3]
[402400384,1768672253467,-500.0,0.00016986,3]
[402400386,1768672253476,-535.99950992,0.00016986,3]
[402400388,1768672253486,-500.0,0.00016986,3]
[402400390,1768672253496,-545.974807,0.00016986,3]
[402400392,1768672253505,-500.0,0.00016986,3]
[402400394,1768672253514,-500.0,0.00016986,3]
[402400396,1768672253524,-505.27,0.00016986,3]
[402400398,1768672253532,-1280.76,0.00016986,3]
[402400400,1768672253542,-500.0,0.00016986,3]
[402400402,1768672253551,-1200.0,0.00016986,2]
[402400404,1768672253561,-633.08,0.00016986,3]
[402400406,1768672253571,-514.91211625,0.00016986,3]
[402400408,1768672253581,-500.0,0.00016986,3]
[402400410,1768672253590,-735.44,0.00016986,3]
[402400412,1768672253600,-500.0,0.00016986,3]
[402400414,1768672253611,-500.0,0.00016986,3]
[402400416,1768672253621,-500.0,0.00016986,3]
[402400418,1768672253631,-536.05,0.00016986,3]
[402400420,1768672253642,-500.0,0.00016986,3]
[402400422,1768672253652,-500.0,0.00016986,3]
[402400424,1768672253663,-500.0,0.00016986,3]
[402400426,1768672253673,-500.0,0.00016986,3]
[402400428,1768672253682,-742.56,0.00016986,3]
[402400430,1768672253692,-500.0,0.00016986,3]
[402400432,1768672253702,-500.0,0.00016986,3]
[402400434,1768672253712,-500.0,0.00016986,3]
[402400436,1768672253722,-562.7811494,0.00016986,3]
[402400438,1768672253731,-1411.96,0.00016986,3]
[402400440,1768672253741,-811.82,0.00016986,3]
[402400441,1768672253750,-997.47,0.00016986,3]
[402400443,1768672253760,-500.0,0.00016986,3]
[402400445,1768672253769,-1358.94,0.00016986,3]
[402400447,1768672253778,-500.0,0.00016986,3]
[402400449,1768672253788,-683.61,0.00016986,3]
[402400451,1768672253798,-500.0,0.00016986,3]
[402400453,1768672253807,-500.0,0.00016986,3]
[402400456,1768672253818,-500.0,0.00016986,3]
[402400457,1768672253828,-500.0,0.00016986,3]
[402400459,1768672253837,-705.55,0.00016986,3]
[402400461,1768672253847,-716.4,0.00016986,3]
[402400463,1768672253857,-500.0,0.00016986,3]
[402400465,1768672253866,-500.0,0.00016986,3]
[402400467,1768672253876,-729.97,0.00016986,3]
[402400470,1768672253888,-500.0,0.00016986,3]
[402400472,1768672253899,-520.99,0.00016986,3]
[402400474,1768672253908,-1532.82,0.00016986,3]
[402400476,1768672253918,-500.0,0.00016986,3]
[402400477,1768672253927,-500.0,0.00016986,3]
[402400489,1768672254038,-500.0,0.00016986,3]
[402400492,1768672254061,-175.73098182,0.00016986,3]
[402400494,1768672254072,-711.45,0.00016986,3]
[402400496,1768672254082,-762.94,0.00016986,3]
[402400498,1768672254091,-885.65,0.00016986,3]
[402400500,1768672254101,-1015.5,0.00016986,3]
[402400502,1768672254110,-500.0,0.00016986,3]
[402400504,1768672254120,-500.0,0.00016986,3]
[402400506,1768672254130,-500.0,0.00016986,3]
[402400508,1768672254139,-904.58,0.00016986,3]
[402400510,1768672254149,-1533.96,0.00016986,3]
[402400512,1768672254159,-776.21,0.00016986,3]
[402400514,1768672254168,-500.0,0.00016986,3]
[402400516,1768672254178,-500.0,0.00016986,3]
[402400518,1768672254188,-845.11,0.00016986,3]
[402400520,1768672254198,-500.0,0.00016986,3]
[402400522,1768672254208,-881.13,0.00016986,3]
[402400524,1768672254218,-500.0,0.00016986,3]
[402400527,1768672254229,-500.0,0.00016986,3]
[402400529,1768672254239,-500.0,0.00016986,3]
[402400530,1768672254248,-500.0,0.00016986,3]
[402400532,1768672254258,-500.0,0.00016986,3]
[402400534,1768672254267,-500.0,0.00016986,3]
[402400535,1768672254279,-500.0,0.00016986,3]
[402400537,1768672254294,-810.57,0.00016986,3]
[402400539,1768672254304,-1412.17,0.00016986,3]
[402400540,1768672254313,-802.89,0.00016986,3]
[402400542,1768672254326,-500.0,0.00016986,3]
[402400543,1768672254336,-500.0,0.00016986,3]
[402400545,1768672254346,-500.0,0.00016986,3]
[402400546,1768672254356,-426.38732043,0.00016986,3]
[402400548,1768672254365,-500.0,0.00016986,3]
[402400550,1768672254375,-686.71,0.00016986,3]
[402400551,1768672254384,-727.6,0.00016986,3]
[402400552,1768672254393,-500.0,0.00016986,3]
[402400554,1768672254403,-500.0,0.00016986,3]
[402400556,1768672254414,-500.0,0.00016986,3]
[402400557,1768672254423,-540.93,0.00016986,3]
[402400559,1768672254432,-500.0,0.00016986,3]
[402400560,1768672254442,-500.0,0.00016986,3]
[402400562,1768672254453,-1000.0,0.00016986,2]
[402400563,1768672254462,-500.0,0.00016986,3]
[402400565,1768672254471,-500.0,0.00016986,3]
[402400566,1768672254481,-500.0,0.00016986,3]
[402400568,1768672254490,-500.0,0.00016986,3]
[402400569,1768672254500,-716.95,0.00016986,3]
[402400571,1768672254509,-500.0,0.00016986,3]
[402400572,1768672254518,-500.0,0.00016986,3]
[402400574,1768672254527,-727.17,0.00016986,3]
[402400576,1768672254538,-1357.3,0.00016986,3]
[402400577,1768672254547,-500.0,0.00016986,3]
[402400579,1768672254556,-500.0,0.00016986,3]
[402400580,1768672254565,-497.71228405,0.00016986,3]
[402400582,1768672254574,-500.0,0.00016986,3]
[402400583,1768672254583,-1149.14,0.00016986,3]
[402400585,1768672254592,-500.0,0.00016986,3]
[402400587,1768672254601,-607.11,0.00016986,3]
[402400588,1768672254610,-500.0,0.00016986,3]
[402400590,1768672254619,-500.0,0.00016986,3]
[402400591,1768672254628,-808.06,0.00016986,3]
[402400593,1768672254637,-772.15,0.00016986,3]
[402400594,1768672254647,-819.52,0.00016986,3]
[402400596,1768672254656,-500.0,0.00016986,3]
[402400597,1768672254665,-500.0,0.00016986,3]
[402400599,1768672254674,-500.0,0.00016986,3]
[402400601,1768672254684,-500.0,0.00016986,3]
[402400602,1768672254693,-500.0,0.00016986,3]
[402400604,1768672254702,-1028.09,0.00016986,3]
[402400605,1768672254711,-500.0,0.00016986,3]
[402400607,1768672254720,-500.0,0.00016986,3]
[402400608,1768672254729,-837.9,0.00016986,3]
[402400610,1768672254738,-500.0,0.00016986,3]
[402400611,1768672254747,-1136.48,0.00016986,3]
[402400613,1768672254758,-500.0,0.00016986,3]
[402400614,1768672254767,-500.0,0.00016986,3]
[402400616,1768672254775,-500.0,0.00016986,3]
[402400618,1768672254784,-599.08,0.00016986,3]
[402400619,1768672254794,-1593.44,0.00016986,3]
[402400621,1768672254804,-500.0,0.00016986,3]
[402400622,1768672254813,-500.0,0.00016986,3]
[402400624,1768672254823,-500.0,0.00016986,3]
[402400626,1768672254832,-500.0,0.00016986,3]
[402400627,1768672254841,-500.0,0.00016986,3]
[402400629,1768672254850,-500.0,0.00016986,3]
[402400630,1768672254860,-500.0,0.00016986,3]
[402400631,1768672254869,-500.0,0.00016986,3]
[402400633,1768672254878,-1254.11,0.00016986,3]
[402400635,1768672254890,-500.0,0.00016986,3]
[402400636,1768672254899,-500.0,0.00016986,3]
[402400638,1768672254909,-500.0,0.00016986,3]
[402400640,1768672254918,-500.0,0.00016986,3]
[402400641,1768672254927,-500.0,0.00016986,3]
[402400643,1768672254936,-1755.19,0.00016986,3]
[402400644,1768672254945,-631.38,0.00016986,3]
[402400646,1768672254954,-514.21,0.00016986,3]
[402400648,1768672254964,-1107.65,0.00016986,3]
[402400649,1768672254973,-500.0,0.00016986,3]
[402400651,1768672254983,-500.0,0.00016986,3]
[402400652,1768672254992,-500.0,0.00016986,3]
[402400654,1768672255001,-1185.83,0.00016986,3]
[402400656,1768672255012,-1000.17,0.00016986,3]
[402400657,1768672255021,-500.0,0.00016986,3]
[402400659,1768672255031,-500.0,0.00016986,3]
[402400660,1768672255040,-500.0,0.00016986,3]
[402400662,1768672255049,-547.09236024,0.00016986,3]
[402400664,1768672255058,-1353.46,0.00016986,3]
[402400665,1768672255068,-500.0,0.00016986,3]
[402400667,1768672255078,-500.0,0.00016986,3]
[402400668,1768672255087,-500.0,0.00016986,3]
[402400670,1768672255097,-500.0,0.00016986,3]
[402400672,1768672255107,-500.0,0.00016986,3]
[402400673,1768672255116,-500.0,0.00016986,3]
[402400675,1768672255127,-500.0,0.00016986,3]
[402400677,1768672255136,-526.8,0.00016986,3]
[402400678,1768672255146,-1772.05,0.00016986,3]
[402400680,1768672255155,-638.11,0.00016986,3]
[402400681,1768672255165,-500.0,0.00016986,3]
[402400683,1768672255174,-1230.93,0.00016986,3]
[402400685,1768672255184,-500.0,0.00016986,3]
[402400686,1768672255193,-526.01,0.00016986,3]
[402400688,1768672255203,-579.07,0.00016986,3]
[402400689,1768672255213,-500.0,0.00016986,3]
[402400691,1768672255223,-1439.94,0.00016986,3]
[402400693,1768672255232,-1401.58,0.00016986,3]
[402400694,1768672255242,-500.0,0.00016986,3]
[402400696,1768672255252,-500.0,0.00016986,3]
[402400697,1768672255262,-500.0,0.00016986,3]
[402400699,1768672255271,-500.0,0.00016986,3]
[402400701,1768672255283,-500.0,0.00016986,3]
[402400702,1768672255292,-1620.39,0.00016986,3]
[402400704,1768672255302,-500.0,0.00016986,3]
[402400706,1768672255313,-500.0,0.00016986,3]
[402400707,1768672255323,-500.0,0.00016986,3]
[402400709,1768672255333,-500.0,0.00016986,3]
[402400711,1768672255342,-500.0,0.00016986,3]
[402400712,1768672255352,-310.90446794,0.00016986,3]
[402400714,1768672255363,-500.0,0.00016986,3]
[402400715,1768672255372,-655.94,0.00016986,3]
[402400717,1768672255382,-755.72,0.00016986,3]
[402400719,1768672255391,-311.24128532,0.00016986,3]
[402400720,1768672255401,-500.0,0.00016986,3]
[402400722,1768672255410,-500.0,0.00016986,3]
[402400723,1768672255420,-6173.67,0.00016986,3]
[402400725,1768672255430,-500.0,0.00016986,3]
[402400727,1768672255440,-677.04,0.00016986,3]
[402400728,1768672255449,-500.0,0.00016986,3]
[402400730,1768672255459,-500.0,0.00016986,3]
[402400732,1768672255469,-1349.74,0.00016986,3]
[402400733,1768672255479,-500.0,0.00016986,3]
[402400735,1768672255489,-500.0,0.00016986,3]
[402400736,1768672255499,-715.28,0.00016986,3]
[402400738,1768672255509,-785.23,0.00016986,3]
[402400740,1768672255520,-500.0,0.00016986,3]
[402400741,1768672255529,-500.0,0.00016986,3]
[402400743,1768672255539,-500.0,0.00016986,3]
[402400745,1768672255550,-1079.91,0.00016986,3]
[402400746,1768672255559,-1224.26,0.00016986,3]
[402400748,1768672255569,-1116.8,0.00016986,3]
[402400749,1768672255577,-788.6,0.00016986,3]
[402400751,1768672255586,-618.2,0.00016986,3]
[402400753,1768672255596,-500.0,0.00016986,3]
[402400754,1768672255606,-500.0,0.00016986,3]
[402400756,1768672255615,-500.0,0.00016986,3]
[402400758,1768672255626,-963.95,0.00016986,3]
[402400759,1768672255635,-500.0,0.00016986,3]
[402400761,1768672255644,-500.0,0.00016986,3]
[402400762,1768672255654,-500.0,0.00016986,3]
[402400764,1768672255663,-557.77,0.00016986,3]
[402400766,1768672255672,-587.98,0.00016986,3]
[402400767,1768672255681,-500.0,0.00016986,3]
[402400769,1768672255691,-1205.99,0.00016986,3]
[402400770,1768672255700,-2066.65,0.00016986,3]
[402400772,1768672255709,-500.0,0.00016986,3]
[402400774,1768672255718,-500.0,0.00016986,3]
[402400775,1768672255727,-500.0,0.00016986,3]
[402400777,1768672255736,-733.5,0.00016986,3]
[402400778,1768672255745,-650.21,0.00016986,3]
[402400780,1768672255754,-613.38,0.00016986,3]
[402400782,1768672255764,-500.0,0.00016986,3]
[402400783,1768672255772,-835.5,0.00016986,3]
[402400785,1768672255781,-500.0,0.00016986,3]
[402400786,1768672255790,-579.4,0.00016986,3]
[402400788,1768672255800,-573.28,0.00016986,3]
[402400790,1768672255809,-500.0,0.00016986,3]
[402400791,1768672255818,-500.0,0.00016986,3]
[402400793,1768672255827,-743.96,0.00016986,3]
[402400794,1768672255835,-1136.31,0.00016986,3]
[402400796,1768672255845,-500.0,0.00016986,3]
[402400798,1768672255854,-628.63,0.00016986,3]
[402400799,1768672255862,-1068.17,0.00016986,3]
[402400801,1768672255872,-936.87,0.00016986,3]
[402400802,1768672255881,-500.0,0.00016986,3]
[402400804,1768672255890,-500.0,0.00016986,3]
[402400806,1768672255900,-500.0,0.00016986,3]
[402400807,1768672255910,-500.0,0.00016986,3]
[402400809,1768672255919,-614.82090661,0.00016986,3]
[402400811,1768672255930,-549.98,0.00016986,3]
[402400812,1768672255940,-500.0,0.00016986,3]
[402400814,1768672255949,-834.61,0.00016986,3]
[402400815,1768672255959,-564.82,0.00016986,3]
[402400817,1768672255969,-500.0,0.00016986,3]
[402400819,1768672255978,-554.04,0.00016986,3]
[402400820,1768672255988,-500.0,0.00016986,3]